Cogmind - Beta 16 @@@ ROGUE MODE // 2025.11.20 @ 16:22:08 Player: BlobtheGreat Result: Destroyed by Y-45 Defender with Beam Rifle Performance ------------- Evolutions (0) 0 Regions Visited (2) 400 Robots Destroyed (32) 160 Value Destroyed (772) 772 Prototype IDs (12) 240 Alien Tech Used (0) 0 Bonus (0) 0 TOTAL SCORE: 1572 Bonus ------- None Cogmind --------- Core Integrity 0/250 Matter 227/300 Energy 200/200 System Corruption 0% Temperature Cool (9) Movement Treading (160) Location -10/Subcaves Parts ------- > --- POWER (1) -------- Subdweller Power Source > --- PROPULSION (2) --- Light Treads Light Treads > --- UTILITY (2) ------ Large Storage Unit Makeshift Light Armor Plating > --- WEAPON (2) ------- Light Cannon Battle Cannon > --- INVENTORY (15) --- Light Treads Light Treads Makeshift Leg Subdweller Monowheel Huge Storage Unit Subdweller Optics Seismic Detector ECM Suite Scrap Shield Powered Cannon Subdweller Machine Gun Rocket Launcher Datajack Peak State ------------ > --- POWER ------------ Subdweller Power Source > --- PROPULSION ------- Light Treads Light Treads > --- UTILITY ---------- Large Storage Unit Makeshift Light Armor Plating > --- WEAPON ----------- Light Cannon Battle Cannon > --- INVENTORY -------- Light Treads Light Treads Makeshift Leg Subdweller Monowheel Huge Storage Unit Subdweller Optics Seismic Detector ECM Suite Scrap Shield Powered Cannon Subdweller Machine Gun Rocket Launcher Datajack [Rating: 15] Favorites ----------- Power Subdweller Power Source Engine Subdweller Power Source Propulsion Light Treads Treads Light Treads Leg Aluminum Leg Utility Large Storage Unit Device Seismic Detector Storage Large Storage Unit Protection Light Armor Plating Weapon Light Cannon Ballistic Gun Light Assault Rifle Ballistic Cannon Light Cannon Launcher Rocket Launcher Build | -11 -10 -10 ------- Run | Yrd Mat Sub Slots Evolved . | . . . Power . | . . . Propulsion . | . . . Utility . | . . . Weapon . | . . . Parts Attached 29 | 7 14 8 Power 4 | 1 2 1 Engine 4 | 1 2 1 Core . | . . . Reactor . | . . . Propulsion 9 | 2 5 2 Treads 6 | 2 2 2 Leg 3 | . 3 . Wheel . | . . . Hover . | . . . Flight . | . . . Utility 7 | 2 3 2 Device 3 | 1 1 1 Storage 2 | 1 1 . Processor . | . . . Hackware . | . . . Protection 2 | . 1 1 Artifact . | . . . Weapon 9 | 2 4 3 Energy Gun . | . . . Energy Cannon . | . . . Ballistic Gun 5 | 2 2 1 Ballistic Cannon 3 | . 2 1 Launcher 1 | . . 1 Special Weapon . | . . . Impact Weapon . | . . . Slashing Weapon . | . . . Piercing Weapon . | . . . Special Melee Weapon . | . . . Unidentified Prototypes . | . . . Parts Lost 5 | . 4 1 Power 2 | . 2 . Propulsion . | . . . Utility 3 | . 2 1 Weapon . | . . . Highest Loss Streak 2 | . 2 1 To Critical Strikes . | . . . Average Backups 12 | 4 12 14 Power . | . . . Propulsion 4 | 2 4 4 Utility 3 | . 3 4 Weapon 3 | . 2 4 Tool/Special . | . . . Unused Backups 19 | . 6 13 Power . | . . . Propulsion 6 | . 2 4 Utility 5 | . 1 4 Weapon 7 | . 3 4 Tool/Special 1 | . . 1 Average Slot Usage (%) 99 | . 98 99 Engine 13 | . 13 14 Treads 24 | . 18 28 Leg 3 | . 9 . Device 11 | . 9 12 Storage 14 | . 14 14 Protection 2 | . 4 1 Ballistic Gun 7 | . 17 1 Ballistic Cannon 19 | . 10 26 Peak Build Rating 15 | 7 12 15 Average Rating 9 | 5 9 10 On Entrance 5 | . 7 9 Avg Prop Armor Cover (%) . | . . . Naked Turns . | . . . Heaviest Build 34 | 12 34 34 Greatest Support 40 | 40 40 40 Greatest Overweight (x) 1 | . 1 . Average Overweight (x) . | . . . Largest Inventory Capacity 15 | 8 15 15 Average Capacity 14 | 7 14 15 Most Carried 15 | 7 15 15 Average Carried 13 | 5 12 14 Final Capacity 15 | 8 15 15 Final Carried 15 | 7 15 15 Class Distribution -------------------- 100% | Mutant Dominant Class ---------------- Mutant | -10/Materials Mutant | -10/Subcaves Resources | -11 -10 -10 ----------- Run | Yrd Mat Sub Matter Collected 1222 | 302 439 481 Remotely . | . . . Salvage Created 962 | 131 667 164 Parts 61 | 15 34 12 Haulers Intercepted 2 | . 2 . Recyclers Shooed 1 | . 1 . Parts Field Recycled . | . . . Retrieved Matter . | . . . Parts Self-Destructed 7 | . . 7 Prevented . | . . . Parts Restored . | . . . Kills | -11 -10 -10 ------- Run | Yrd Mat Sub Combat Hostiles Destroyed 23 | . 15 8 Guns 13 | . 12 1 Cannons 6 | . 2 4 AOE 4 | . 1 3 Classes Destroyed 9 | 3 5 1 Worker 1 | 1 . . Tunneler 3 | 3 . . Hauler 2 | . 2 . Recycler 1 | 1 . . Operator 1 | . 1 . Watcher 1 | . 1 . Swarmer 6 | . 3 3 Grunt 13 | . 12 1 Subdweller 4 | . . 4 Best Kill Streak 6 | 4 6 3 Combat Bots Only 5 | . 5 3 Max Kills in Single Turn 3 | 1 2 3 Gunslinging 1 | . 1 . Exploded 3 | . 1 3 Melee . | . . . Uniques/NPCs Destroyed . | . . . Combat | -11 -10 -10 -------- Run | Yrd Mat Sub Hostile Shots Fired 122 | . 78 44 Missed 37 | . 21 16 Hits 85 | . 57 28 Projectile 85 | . 57 28 Damage Taken 1329 | . 780 549 Core 260 | . 154 106 Absorbed by Shields . | . . . Regen/Repaired (Parts) 96 | . 96 . Core Remaining (%) 100 | 100 . . Volleys Fired 129 | 8 59 62 Largest 2 | 2 2 2 Hottest 63 | 40 60 63 Shots Fired 227 | 16 118 93 Gun 124 | 16 88 20 Cannon 99 | . 30 69 Launcher 4 | . . 4 Special . | . . . Kinetic 223 | 16 118 89 Thermal . | . . . Explosive 4 | . . 4 Electromagnetic . | . . . Robot Hit Streak 20 | 7 17 20 Robot Miss Streak 5 | 2 4 5 Penetration Max . | . . . Secondary Targets 3 | . 3 . Max Gunslinging Chain 1 | . 1 . Shots Hit Robots 122 | 10 76 36 Core Hits 50 | 7 31 12 Critical Kills . | . . . Critical Parts Destroyed . | . . . Critical Strikes 2 | . 1 1 Blast 2 | . 1 1 Melee Attacks . | . . . Impact . | . . . Slashing . | . . . Piercing . | . . . Sneak Attacks . | . . . Combat Hostiles . | . . . Follow-up Attacks . | . . . Damage Inflicted 1962 | 99 1096 767 Guns 843 | 99 627 117 Cannons 874 | . 363 511 Explosions 239 | . 100 139 Melee . | . . . Ramming 6 | . 6 . Kinetic 1717 | 99 990 628 Thermal . | . . . Explosive 239 | . 100 139 Electromagnetic . | . . . Impact . | . . . Slashing . | . . . Piercing . | . . . Highest Corruption . | . . . Average Corruption . | . . . Corruption Purged . | . . . Corruption Blocked . | . . . Overload Shots . | . . . Overflow Damage 52 | . 52 . Projectiles 10 | . 10 . Explosions 42 | . 42 . Melee . | . . . Knockbacks 8 | . 3 5 Impact . | . . . Kinetic 8 | . 3 5 Secondary . | . . . Self-Inflicted Damage 107 | . 91 16 Shots 3 | . 2 1 Rammed 2 | . 2 . Targets Rammed 2 | . 2 . Kicked . | . . . Crushed . | . . . Highest Temperature 27 | . 27 . Average Temperature 9 | . 9 . Received Heat Transfer 420 | . 366 54 Siege Activations . | . . . Martial Activations . | . . . Shielding Activations . | . . . Robots Disrupted . | . . . Combat Hostiles . | . . . Robots Corrupted . | . . . Combat Hostiles . | . . . Parts Fried . | . . . Impact Corruptions . | . . . Robots Melted . | . . . Combat Hostiles . | . . . Parts Melted . | . . . Heat Transferred . | . . . Parts Sabotaged . | . . . Parts Stolen . | . . . Parts Stripped . | . . . Power Chain Reactions . | . . . Alert | -11 -10 -10 ------- Run | Yrd Mat Sub Maximum Alert Level . | . . . Low Security (%) 100 | 100 100 . Level 1 . | . . . Level 2 . | . . . Level 3 . | . . . Level 4 . | . . . Level 5 . | . . . High Security . | . . . Max Security . | . . . Peak Influence 145 | 10 145 . Initial . | . . . Average 36 | 1 40 . Influence Increases 610 | 25 480 105 Destroy 0b10 Robot/C 380 | . 300 80 Destroy 0b10 Robot/NC 45 | 25 20 . Destroy Leader 86 | . 76 10 Successful Hack 2 | . 2 . Disable Machine 30 | . 30 . Destroy Structure 37 | . 37 . Lose Combat Pursuer 30 | . 15 15 Influence Decreases 531 | 25 476 30 Entered New Map 3 | . . 3 Time Decay 498 | 25 446 27 Lost Part 30 | . 30 . Squads Dispatched 4 | . 4 . Investigation 2 | . 2 . Extermination . | . . . Reinforcement 2 | . 2 . Assault . | . . . Garrison . | . . . Intercept . | . . . Searches Triggered . | . . . Construction Impeded . | . . . Haulers Reinforced . | . . . Active Scanning Responses . | . . . Cargo Convoy Interrupts . | . . . Stealth | -11 -10 -10 --------- Run | Yrd Mat Sub Distress Signals 2 | . 2 . Communications Jammed . | . . . Distress Signals . | . . . Times Spotted 34 | . 26 8 Peak Tracking Total 6 | . 6 3 Tactical Retreats 2 | . 1 1 Traps | -11 -10 -10 ------- Run | Yrd Mat Sub Traps Triggered 1 | . 1 . Indirectly . | . . . Trap Hack Attempts . | . . . Triggered . | . . . Disarmed . | . . . Reprogrammed . | . . . Reused . | . . . Traps Extracted . | . . . Installed . | . . . Triggered . | . . . Machines | -11 -10 -10 ---------- Run | Yrd Mat Sub Machines Disabled 3 | . 2 1 Max in Single Turn 2 | . 2 1 Machines Repaired . | . . . Machines Dismantled . | . . . Machines Sabotaged . | . . . Overloaded Fab Kills . | . . . Hacking | -11 -10 -10 --------- Run | Yrd Mat Sub Machines Accessed 9 | . 6 3 Terminals 4 | . 4 . Fabricators . | . . . Repair Stations 1 | . 1 . Recycling Units 1 | . 1 . Scanalyzers . | . . . Garrison Access . | . . . Total Hacks 25 | . 19 6 Successful 13 | . 7 6 Failed 12 | . 12 . Catastrophic . | . . . Database Lockouts . | . . . Manual 15 | . 15 . Terminals 15 | . 15 . Fabricators . | . . . Repair Stations 2 | . 2 . Recycling Units 2 | . 2 . Scanalyzers . | . . . Garrison Access . | . . . Terminal Hacks 8 | . 2 6 Record 4 | . . 4 Robot Analysis 2 | . 2 . Open Door 1 | . . 1 Proto ID Catalog 1 | . . 1 Fabricator Hacks . | . . . Repair Station Hacks 2 | . 2 . Scan Component 1 | . 1 . Repair 1 | . 1 . Recycling Unit Hacks . | . . . Scanalyzer . | . . . Garrison Access Hacks . | . . . Unauthorized Hacks 3 | . 3 . Terminals 3 | . 3 . Botnet 1 | . 1 . Skim 2 | . 2 . Fabricators . | . . . Repair Stations . | . . . Recycling Units . | . . . Scanalyzers . | . . . Garrison Access . | . . . Data Cores Recovered 1 | . 1 . Used . | . . . Hacking Detections 6 | . 6 . Full Trace Events 1 | . 1 . Feedback Events . | . . . Feedback Blocked . | . . . Robot Schematics Acquired . | . . . Robots Built . | . . . Authchips . | . . . Time . | . . . Total Robot Build Rating . | . . . Part Schematics Acquired . | . . . Parts Built . | . . . Authchips . | . . . Time . | . . . Total Part Build Rating . | . . . Part Studies Acquired . | . . . Parts Repaired 1 | . 1 . Time 26 | . 26 . Parts Recycled . | . . . Recycled Matter . | . . . Retrieved Matter . | . . . Retrieved Components . | . . . Parts Scanalyzed . | . . . Part Schematics Acquired . | . . . Parts Damaged . | . . . Bothacking | -11 -10 -10 ------------ Run | Yrd Mat Sub Used RIF Installer . | . . . Robots Hacked . | . . . Non-combat . | . . . Combat . | . . . Robot Hacks Applied . | . . . Relay Couplers Released . | . . . Fabnet Peak Effective % . | . . . Robots Rewired . | . . . Allies Hacked . | . . . Hacks Repelled . | . . . Allies | -11 -10 -10 -------- Run | Yrd Mat Sub Total Allies . | . . . Largest Group . | . . . Highest-Rated Group . | . . . Highest-Rated Ally . | . . . Total Orders . | . . . Ally Attacks . | . . . Total Damage . | . . . Kills . | . . . Allies Corrupted . | . . . Allies Melted . | . . . Intel | -11 -10 -10 ------- Run | Yrd Mat Sub Active Infowar (turns) 2084 | 51 134 1899 Seismic 2084 | 51 134 1899 Robot Analysis Total 2 | . 2 . Derelict Logs Recovered . | . . . Drone Launches . | . . . Drone Recoveries . | . . . Exploration | -11 -10 -10 ------------- Run | Yrd Mat Sub Turns Passed 3825 | 177 1515 2133 Spaces Moved 1764 | 89 744 931 Core 4 | 4 . . Treads 1538 | 85 522 931 Legs 222 | . 222 . Wheels . | . . . Hover . | . . . Flight . | . . . Fastest Speed 50 | 50 160 160 Average Speed 163 | 155 169 160 Slowest Speed 240 | 160 240 160 Overloaded Moves . | . . . Propulsion Burnouts . | . . . Robots Hopped . | . . . Potential Cave-ins . | . . . Cave-ins Triggered . | . . . Exploration Rate (%) 56 | 6 97 66 Regions Visited 2 Branch Regions 1 Pre-discovered Areas . | . . . Known Exits Taken . | . . . Unknown Exits Taken 2 | 1 1 . Scrap Searched 7 | . . 7 Spaces Dug 32 | . . 32 Terrain Destroyed 78 | . 46 32 Melee . | . . . Projectile . | . . . AOE 78 | . 46 32 Terrain Rammed . | . . . Walls Destroyed . | . . . Machines Disabled . | . . . Actions | -11 -10 -10 --------- Run | Yrd Mat Sub Total 2480 | 110 891 1479 Wait 488 | . 38 450 Move 1762 | 88 743 931 Hop . | . . . Pick Up 32 | 7 18 7 Fast Attach 15 | 7 6 2 Attach 5 | . 2 3 Detach 2 | . 2 . Swap 21 | . 7 14 Drop 24 | . 14 10 Fire 129 | 8 59 62 Melee . | . . . Ram . | . . . Kick . | . . . Crush 2 | . 2 . Escape Stasis . | . . . Rewire . | . . . Trap . | . . . Miscellaneous . | . . . Route ------- -11/Scrapyard -10/Materials (discovered 6 exits: [*Mat x3] / [*Min x2] / *Sub) -10/Subcaves (discovered 1 exit: [*Mat]) History --------- Turn | Location | Event 42 | -11/Scrapyard | Discovered new exit (range 16) 178 | -11/Scrapyard | Entered Materials 304 | -10/Materials | Build established: Mutant 476 | -10/Materials | Discovered new exit (range 14) 524 | -10/Materials | Discovered new exit (range 6) 830 | -10/Materials | Discovered new exit (range 15) 1227 | -10/Materials | Core integrity fell below 50% 1306 | -10/Materials | Discovered new exit (range 11) 1373 | -10/Materials | Repaired Lgt. Treads 1406 | -10/Materials | Discovered new exit (range 3) 1683 | -10/Materials | Discovered new exit (range 7) 1693 | -10/Materials | Entered Subcaves 1874 | -10/Subcaves | A swath of the cavern ceiling suddenly collapsed 2167 | -10/Subcaves | Disturbed a concealed Subdweller 2173 | -10/Subcaves | Core integrity fell below 20% 3410 | -10/Subcaves | Visited 4L-MR0's lab 3433 | -10/Subcaves | Found Powered Cannon 3625 | -10/Subcaves | Discovered new exit (range 5) 3631 | -10/Subcaves | Visited Clippyterm 3636 | -10/Subcaves | Learned Research security intel 3636 | -10/Subcaves | Learned Factory stockpile data 3722 | -10/Subcaves | Shifting Twisted Machinery released Sub. Shrapnel Launcher 3722 | -10/Subcaves | Shifting Twisted Machinery released Mak. Flight Unit 3826 | -10/Subcaves | Destroyed by Y-45 Defender with Beam Rifle Last Messages --------------- Data stored: Research security intel. >>Record! "Finders Keepers" It looks like you're interested in reappropriating Complex 0b10 components, would you like help? Data stored: Factory stockpile data. >>Record "01-MTF" It looks like you're after the notorious thief from 0b1. I don't know where they are, but my data indicates that someone they're looking for is frequently seen in Scraptown. 03673_ Acquired 10 matter. 03675_ The unstable cave ceiling collapses. 03678_ Acquired 4 matter. Sub. Shrapnel Launcher falls loose from the Twisted Machinery. Mak. Flight Unit falls loose from the Twisted Machinery. 03818_ G-34 Mercenary destroyed. 03824_ Aluminum Leg fries itself beyond repair. Map ----- +----------------------------------------------------+ | ??# #### % #### #???????????? | | ??# ???????????? | | ??# [% ??????????? | | ## ## ### # # # # ???????????? | | ##### ## ###### #????????????????? | | #????### #???????????????? | | # ### #### #???????????????? | | #" " ###### ###???# ###???????????????? | | #"" ### " #????####??????##?????????????????? | | # "#???## #????????????????????????????????? | | # ??????#### #???????????????????????????????? | | ""?????????? #???????????????????????????????? | | " ?????????? #???????????????????????????????? | | "??????????# #???????????????????????????????? | | #"##??###????## ###?????????????????????????????? | | #""###""#?????# ?????????????????????????????? | | #" """#?????# ??????????????????????????????? | | ## " ####?## ?????????????????????????????? | | ?## " ### ## ####????????????????????????????? | | ??#"" ##?? ##?????????????????????????????? | | ??# #?? #?????????????????????????????? | | ??## ]"#??? #?????????????????????????????? | | ??#=" "#??## # ############??????????????????? | | ??#"" ##??# ## ##?????????????????? | | ?## ##### # # ##### #??????????? | | ## ## ## @ Y % #?????????? | | ##### #?????????? | | #### #???## ##?????????? | | # ##??##### #????? ###??????????? | | ## ## #???????# ## #????? ##????????????? | | ?# ### #???????# ### #????? #?????????????? | | ?####?## #?????? #?# ##?????? ????????????? | | ???????###????? ?###??????? ???????????? | | ???#######??? ??????????? ??????????? | | ???#"""""#??? ?????????? ?????????? | | ???#""X""#??# #??????????? ????????? | | #??#" "#??# #??????????? ????????? | | ##?### ####?## ??????????? ?????????? | | #??## ## ##?#### ??????????? ???????????? | | ##?## #????# ???????????? ??????????????? | | #### ##???? ???????????????????????????? | | ## ##????? ????????????????????????????? | | #?????????????????????????????????????? | | ## < ##????????????????????????????????????? | | ### ####?????????????????????????????????? | | ### ##????????????????????????????????? | | ##?### #????????????????????????????????? | | ######????#### #????????????????????????????????? | | ??????????????###????????????????????????????????? | | ?????????????????????????????????????????????????? | +----------------------------------------------------+ Best States ------------- Heat Dissipation 39 Energy Generation 10 Energy Capacity 250 Matter Stores 300 Matter Capacity 300 Sight Range 16 Terrain Scan Density 10 Armor Coverage 150 Evasion (%) 40 Recoil Reduction 2 Item Schematics ----------------- None Robot Schematics ------------------ None Fabricated ------------ Nothing Repaired ---------- Lgt. Treads | 31% | -10/Materials Studied --------- None Alien Tech Used ----------------- None Achievements -------------- None Challenges ------------ None Game ------ Seed SmallThermicMonowheel Manual? 0 Play Time 00:17:44 Cumulative 187.7 hours Start 2025.11.20 @ 15:55:13 End 2025.11.20 @ 16:22:08 Sessions 1 Manual Loads 0 Difficulty Rogue Special Mode None Game No. 181 Rogue 181 Adventurer 0 Explorer 0 Win Type - Total 6 Types 5/0/1/0/0/0/0/0/0/0 Lore% 81 Gallery% 70 Achievement% 54 Wizard Run 0 Options --------- Layout 1 ASCII 0 Keyboard 1 Movement Arrows Keybinds 0 Fullscreen 1 Font 24/Smallcaps Map View 50x40 Zoom Use 0% Tactical HUD 1 Map Filters NONE Filters NONE Steam 1 RUN: 7522ddc3-c2eb-4d31-8b0d-2e71f02e6e43